bitfinex/quotes_ETHUSD_20220311
["timestamp","ask_amount","ask_price","bid_price","bid_amount"]
[1647020708901,0.00407486,2562.7,2562.1,0.5959]
[1647020709101,0.00407486,2562.7,2562.2,3.5]
[1647020709303,0.06274999,2563.1,2562.2,3.5]
[1647020709304,1.00607524,2562.4,2562.3,0.86027878]
[1647020709547,2.01215048,2562.4,2562.3,1.16027878]
[1647020709750,2.01215048,2562.4,2562.3,2.13577878]
[1647020710550,0.00239625,2563.0,2562.4,6.0]
[1647020710755,0.01629751,2562.9,2562.5,4.77533]
[1647020710956,0.01629751,2562.9,2562.5,0.3]
[1647020711254,0.01629751,2562.9,2562.5,4.8]
[1647020711455,0.01629751,2562.9,2562.5,3.8]
[1647020711653,8.40073117,2563.3,2563.0,0.91467362]
[1647020711855,8.40073117,2563.3,2563.1,0.97529]
[1647020711856,0.01679616,2563.2,2563.1,0.97529]
[1647020712652,0.01679616,2563.2,2562.9,2.95057]
[1647020712854,8.40073117,2563.3,2562.9,1.95057]
[1647020713055,8.40073117,2563.3,2562.9,2.95057]
[1647020713303,8.40493062,2563.3,2562.9,1.95057]
[1647020713502,8.40493062,2563.3,2562.9,3.25057]
[1647020713898,8.40493062,2563.3,2563.1,1.11649962]
[1647020714100,8.40073117,2563.3,2563.1,1.41649962]
[1647020714299,0.00420257,2563.2,2563.1,1.41649962]
[1647020714499,0.00420257,2563.2,2562.9,3.337361]
[1647020714699,0.00420257,2563.2,2562.9,2.337361]
[1647020714903,0.00420257,2563.2,2562.9,1.386791]
[1647020715106,0.00420257,2563.2,2562.9,0.386791]
[1647020715303,8.40073117,2563.3,2562.9,0.086791]
[1647020715506,0.00420259,2563.2,2562.9,0.086791]
[1647020715707,0.00420259,2563.2,2563.0,0.93934505]
[1647020716209,0.00420259,2563.2,2563.0,2.21470505]
[1647020716407,8.40073117,2563.3,2563.0,2.00140316]
[1647020716609,8.40073117,2563.3,2563.0,1.91470505]
[1647020716806,0.00420257,2563.2,2563.0,1.91470505]
[1647020717650,8.40073117,2563.3,2563.0,1.91470505]
[1647020717853,8.40073117,2563.3,2563.2,0.97529]
[1647020718151,8.40073117,2563.3,2562.9,4.0127993]
[1647020718350,8.40073117,2563.3,2563.0,0.3]
[1647020719053,8.40480988,2563.3,2563.0,1.37688445]
[1647020719253,8.40480988,2563.3,2563.1,0.97533]
[1647020720051,8.40073117,2563.3,2563.1,0.97533]
[1647020720255,0.00296771,2563.3,2563.2,10.0]
[1647020720462,6.771e-05,2563.3,2563.2,11.16903037]
[1647020720723,6.771e-05,2563.3,2563.2,24.85003037]
[1647020720909,6.771e-05,2563.3,2563.2,25.82509037]
[1647020721108,0.016739,2563.6,2563.2,25.82509037]
[1647020721309,0.016739,2563.6,2563.3,0.3]
[1647020721613,0.016739,2563.6,2563.4,0.97499]
[1647020721809,0.016739,2563.6,2563.4,6.7248915]
[1647020722007,0.016739,2563.6,2563.5,0.96839372]
[1647020722412,0.016739,2563.6,2563.5,5.44338372]
[1647020722806,0.016739,2563.6,2563.5,6.44338372]
[1647020723207,0.016739,2563.6,2563.5,6.04338372]
[1647020723411,0.01185538,2564.1,2563.7,1.94981]
[1647020723611,0.0196889,2564.3,2563.8,0.461]
[1647020723810,0.0196889,2564.3,2563.8,0.761]
[1647020724010,0.0196889,2564.3,2563.8,0.3]
[1647020724216,0.0196889,2564.3,2563.7,0.3]
[1647020724448,1.70384301,2563.5,2563.3,0.97517]
[1647020724648,1.70384301,2563.5,2563.3,1.9504528]
[1647020725045,1.70384301,2563.5,2563.3,3.06626058]
[1647020725748,1.70384301,2563.5,2563.3,4.36626058]
[1647020725949,1.70384301,2563.5,2563.3,3.36626058]
[1647020726148,1.70384301,2563.5,2563.3,4.36626058]
[1647020726351,1.70384301,2563.5,2563.4,0.19393037]
[1647020726753,1.70384301,2563.5,2563.4,3.69393037]
[1647020727149,1.70384301,2563.5,2563.4,4.69393037]
[1647020727350,1.70384301,2563.5,2563.4,1.0]
[1647020727751,1.70384301,2563.5,2563.3,4.36607778]
[1647020728897,1.70384301,2563.5,2563.4,0.19393037]
[1647020729903,1.70384301,2563.5,2563.3,4.2253665]
[1647020730103,1.70384301,2563.5,2563.3,1.95027]
[1647020730306,1.70384301,2563.5,2563.3,0.9752]
[1647020730504,1.70384301,2563.5,2563.3,3.5]
[1647020731005,1.70384301,2563.5,2563.4,0.08881021]
[1647020731204,1.70384301,2563.5,2563.4,0.28274058]
[1647020732049,1.70384301,2563.5,2563.4,1.3949441]
[1647020732250,1.70384301,2563.5,2563.4,0.28274058]
[1647020732453,1.70384301,2563.5,2563.4,0.19393037]
[1647020732650,1.70384301,2563.5,2563.3,4.2252389]
[1647020732651,1.70384301,2563.5,2563.3,3.2502089]
[1647020732853,1.70384301,2563.5,2563.3,2.2502089]
[1647020733055,1.70384301,2563.5,2563.3,3.2502089]
[1647020733253,1.70384301,2563.5,2563.3,2.2502089]
[1647020733453,1.70384301,2563.5,2563.3,3.2502089]
[1647020734056,1.70384301,2563.5,2563.3,2.9502089]
[1647020734656,1.70384301,2563.5,2563.3,1.9502089]
[1647020734858,1.70384301,2563.5,2563.3,2.9502089]
[1647020735057,1.70384301,2563.5,2563.3,1.9502089]
[1647020735257,1.70384301,2563.5,2563.3,2.2502089]
[1647020735457,1.70384301,2563.5,2563.4,3.5]
[1647020735706,1.70384301,2563.5,2563.4,2.06262533]
[1647020735900,1.70384301,2563.5,2563.4,1.0]
[1647020736099,1.70384301,2563.5,2563.3,4.2253789]
[1647020736299,1.70384301,2563.5,2563.3,3.2502089]
[1647020736499,1.70384301,2563.5,2563.3,2.27518]
[1647020736700,1.70384301,2563.5,2563.3,1.27518]
[1647020737002,1.70384301,2563.5,2563.3,0.97518]
[1647020738298,1.70384301,2563.5,2563.3,1.27518]
[1647020742657,1.70384301,2563.5,2563.3,0.3]
[1647020742858,1.70551881,2563.5,2563.1,2.95049]
[1647020743058,1.70551881,2563.5,2562.9,0.19393037]
[1647020743059,1.59741547,2563.4,2562.9,0.19393037]
[1647020743698,0.86406774,2563.0,2562.9,0.19393037]
[1647020743902,1.70551881,2563.5,2562.6,0.59565751]
[1647020743903,1.64218308,2563.3,2562.6,0.59565751]
[1647020744197,1.64218308,2563.3,2562.5,10.3668]
[1647020744198,1.59751834,2563.2,2562.5,10.3668]
[1647020745197,1.04080447,2563.1,2562.5,10.3668]
[1647020745399,1.59751834,2563.0,2562.5,10.3668]
[1647020745697,1.64751874,2563.0,2562.5,10.3668]
[1647020745899,0.0500004,2563.0,2562.5,11.6668]
[1647020746302,1.59769365,2562.9,2562.5,1.0]
[1647020746700,1.59769365,2562.9,2562.4,0.59160699]
[1647020746945,1.59769365,2562.9,2562.4,1.56725699]
[1647020748048,0.05180261,2563.7,2562.6,0.91682811]
[1647020748247,1.59765097,2563.6,2562.7,0.08829631]
[1647020748848,4.59765097,2563.6,2562.7,0.08829631]
[1647020749049,0.97565,2563.4,2562.7,0.08829631]
[1647020749248,1.59765097,2563.3,2562.7,0.08829631]
[1647020749448,1.59765097,2563.3,2563.0,0.00091017]
[1647020749652,0.00121641,2562.8,2562.7,0.08829631]
[1647020750053,3.5,2563.1,2562.3,4.22389764]
[1647020750252,3.5,2563.1,2561.7,15.37117296]
[1647020750253,3.0,2562.8,2561.7,10.7567]
[1647020750450,3.0,2562.8,2561.8,0.08891621]
[1647020750451,0.97605,2562.5,2561.8,0.08891621]
[1647020750902,0.41211538,2562.4,2561.8,0.08891621]
[1647020751101,3.41211538,2562.4,2561.8,0.08891621]
[1647020751704,3.0,2562.4,2561.8,0.08891621]
[1647020751903,0.656,2562.7,2561.8,0.08891621]
[1647020752105,0.05306297,2562.8,2561.8,0.08891621]
[1647020752106,0.24806297,2562.8,2561.8,0.08891621]
[1647020752309,0.05306297,2562.8,2561.8,0.08891621]
[1647020752507,1.0,2562.4,2561.8,1.06492621]
[1647020752706,1.0,2562.4,2561.8,0.08891621]
[1647020753008,1.97605,2562.4,2561.8,0.08891621]
[1647020753306,1.97605,2562.4,2561.7,12.36834]
[1647020753307,6.55303776,2562.3,2562.2,0.00126568]
[1647020753510,3.05303776,2562.3,2562.2,0.00126568]
[1647020753708,3.51403776,2562.3,2562.2,0.00126568]
[1647020753907,1.51403776,2562.3,2562.2,0.00126568]
[1647020754106,3.46635776,2562.3,2562.2,0.00126568]
[1647020754548,3.87847314,2562.3,2562.1,0.00421477]
[1647020755148,7.17847314,2562.3,2562.1,0.00421477]
[1647020755348,4.87847314,2562.3,2562.1,0.00421477]
[1647020755549,7.37847314,2562.3,2562.1,0.00842957]
[1647020755752,6.96635776,2562.3,2562.1,0.0042148]
[1647020755955,3.46635776,2562.3,2562.1,0.0042148]
[1647020756352,3.5,2562.2,2562.1,0.0042148]
[1647020756754,3.5,2562.2,2562.1,0.0084296]
[1647020756955,3.5,2562.2,2562.1,0.0042148]
[1647020757154,4.5,2562.2,2562.1,0.0042148]
[1647020757355,1.97614,2562.2,2562.1,0.0042148]
[1647020758054,1.97614,2562.2,2562.0,0.00327885]
[1647020758055,3.0,2562.1,2562.0,0.00327885]
[1647020758300,0.97614,2562.2,2562.0,0.00327885]
[1647020758500,1.0,2562.1,2562.0,0.00327885]
[1647020759500,1.0,2562.1,2561.9,0.9303948]
[1647020759800,1.13516165,2562.8,2561.9,0.9303948]
[1647020760110,3.72435105,2563.0,2561.9,1.2303948]
[1647020760111,8.3108227,2562.7,2561.9,1.2303948]
[1647020760304,7.8498227,2562.7,2561.9,1.2303948]
[1647020760502,7.8053,2562.7,2562.1,0.09014516]
[1647020760700,7.8053,2562.7,2562.2,0.86620883]
[1647020761108,7.8053,2562.7,2562.3,0.08617309]
[1647020766507,7.8053,2562.7,2562.3,1.06178309]
[1647020766903,7.8053,2562.7,2562.4,0.08155895]
[1647020767103,7.8053,2562.7,2562.4,1.05717895]
[1647020767305,7.8053,2562.7,2562.6,0.81688916]
[1647020767504,7.8053,2562.7,2562.6,1.11688916]
[1647020768709,0.00659607,2563.5,2562.7,2.0]
[1647020768907,0.00421302,2563.5,2562.8,0.97545]
[1647020769109,0.00421302,2563.5,2562.7,0.3]
[1647020769553,0.00421302,2563.5,2563.2,1.01264672]
[1647020769752,1.7041876,2563.1,2562.9,2.25098]
[1647020769951,0.00238305,2563.6,2562.9,0.3]
[1647020770151,0.00238305,2563.6,2562.8,2.9255653]
[1647020770152,0.00413471,2563.5,2562.8,2.9255653]
[1647020770350,0.00413471,2563.5,2563.0,0.97534]
[1647020770558,0.01653791,2563.6,2563.1,6.5]
[1647020770755,0.01653791,2563.6,2563.1,7.8]
[1647020770957,0.41064935,2564.4,2563.3,5.5]
[1647020771157,1.59741773,2564.3,2563.2,2.10734602]
[1647020771558,1.59741773,2564.3,2563.3,6.8563]
[1647020771856,1.59741773,2564.3,2563.3,8.1563]
[1647020774128,0.97537,2564.2,2563.3,8.1563]
[1647020774323,0.97537,2564.2,2563.3,7.8563]
[1647020774324,1.59741773,2564.1,2563.3,7.8563]
[1647020774524,3.5,2564.0,2563.3,6.8563]
[1647020774724,1.59741773,2563.9,2563.2,1.95177717]
[1647020774927,2.60163134,2563.9,2563.2,1.95177717]
[1647020775123,1.59741773,2563.8,2563.2,1.95177717]
[1647020775523,1.59741773,2563.8,2563.3,1.09003223]
[1647020776124,0.00421373,2563.6,2563.2,1.95177717]
[1647020776326,0.00421373,2563.6,2563.2,2.25177717]
[1647020776952,1.59753555,2563.9,2563.2,2.25177717]
[1647020777153,4.47775252,2564.2,2563.2,2.25177717]
[1647020777154,1.59753555,2563.8,2563.2,3.25461225]
[1647020777354,0.00421362,2563.6,2563.2,3.25461225]
[1647020777553,1.60174917,2563.6,2563.2,3.25461225]
[1647020777755,0.00421362,2563.6,2563.4,0.08957766]
[1647020778154,1.59754673,2563.8,2563.4,0.08957766]
[1647020778356,5.38244458,2564.2,2563.4,0.08957766]
[1647020778357,1.59754673,2563.7,2563.4,0.08957766]
[1647020778552,1.60161825,2563.6,2563.4,0.08957766]
[1647020778753,0.00407152,2563.6,2563.4,0.08957766]
[1647020779357,1.59754318,2563.9,2563.4,0.08957766]
[1647020779554,0.00407152,2563.6,2563.4,0.08957766]
[1647020780555,1.59754318,2563.9,2563.4,0.08957766]
[1647020780805,0.00407152,2563.6,2563.4,0.08957766]
[1647020781803,1.59754318,2563.7,2563.4,0.08957766]
[1647020782005,1.60150727,2563.6,2563.4,0.08957766]
[1647020782204,0.00396409,2563.6,2563.4,0.08957766]
[1647020782904,1.59756778,2563.9,2563.4,0.08957766]
[1647020783303,0.00396409,2563.6,2563.4,0.08957766]
[1647020784107,1.59756778,2563.9,2563.4,0.08957766]
[1647020784308,1.59756778,2563.8,2563.4,0.08957766]
[1647020784551,0.00396409,2563.6,2563.4,0.08957766]
[1647020785350,1.59745427,2563.9,2563.4,0.08957766]
[1647020785549,1.59745427,2563.8,2563.4,0.08957766]
[1647020785753,0.00398545,2563.6,2563.4,0.08957766]
[1647020786157,0.00398545,2563.6,2563.5,0.87351086]
[1647020786554,0.00237252,2564.3,2563.5,1.36851086]
[1647020786754,0.00237252,2564.3,2563.6,0.08119856]
[1647020786955,0.00398543,2563.7,2563.6,0.08119856]
[1647020787754,1.59729376,2564.0,2563.6,0.08119856]
[1647020787955,0.77276473,2564.4,2563.6,0.08119856]
[1647020788209,0.00398539,2563.8,2563.6,0.08119856]
[1647020789016,1.59733137,2564.1,2563.6,0.08119856]
[1647020789214,0.00398057,2563.8,2563.6,0.08119856]
[1647020790215,3.5,2564.0,2563.6,0.08119856]
[1647020790420,1.00398057,2563.8,2563.4,1.8449562]
[1647020790619,1.59735468,2563.7,2563.4,1.8449562]
[1647020791617,1.59735468,2563.6,2563.4,1.8449562]
[1647020791819,1.59735468,2563.5,2563.4,1.8449562]
[1647020792074,0.00398063,2563.7,2563.4,1.8449562]
[1647020792663,1.59735468,2563.9,2563.4,2.1449562]
[1647020792867,0.00398171,2563.7,2563.4,2.1449562]
[1647020793069,0.00398171,2563.7,2563.4,1.8449562]
[1647020793271,1.00398171,2563.7,2563.4,1.8449562]
[1647020793470,1.59735468,2563.6,2563.4,1.8449562]
[1647020794377,0.00398171,2563.7,2563.4,1.8449562]
[1647020794670,0.00398171,2563.7,2563.4,2.1449562]
[1647020794872,0.00398171,2563.7,2563.5,0.195]
[1647020795072,0.81791765,2564.4,2563.5,0.27145075]
[1647020795073,1.59731564,2564.0,2563.5,0.27145075]
[1647020795372,0.00398171,2563.7,2563.5,0.27145075]
[1647020796211,0.00237252,2564.3,2563.5,0.27145075]
[1647020796410,2.4152099,2564.4,2563.5,0.27145075]
[1647020796614,0.00398144,2563.7,2563.5,0.27145075]
[1647020797012,0.00398144,2563.7,2563.6,0.97514]
[1647020797209,0.00398144,2563.7,2563.6,1.27514]
[1647020797410,0.00237252,2564.3,2563.6,1.27514]
[1647020797614,0.00398142,2563.8,2563.7,2.75684303]
[1647020797817,0.00398142,2563.8,2563.7,1.495]
[1647020798013,0.01592331,2564.2,2563.8,6.5]
[1647020798215,0.01592331,2564.2,2564.1,1.19153058]
[1647020798613,0.36064935,2564.4,2564.2,3.0]
[1647020798813,0.36064935,2564.4,2564.2,5.1696]
[1647020799014,0.36064935,2564.4,2564.2,5.4696]
[1647020799476,0.36064935,2564.4,2564.2,2.4696]
[1647020799776,0.36064935,2564.4,2564.2,1.4696]
[1647020800186,0.0171527,2564.5,2564.3,6.47477]
[1647020800378,0.0171527,2564.5,2564.3,7.47477]
[1647020800581,0.0171527,2564.5,2564.3,1.97477]
[1647020800782,0.0171527,2564.5,2564.3,0.97477]
[1647020800980,0.0171527,2564.5,2564.2,5.30741772]
[1647020801183,0.0171527,2564.5,2564.3,3.89929]
[1647020801382,0.02009923,2564.5,2564.3,4.19929]
[1647020801581,0.02009923,2564.5,2564.3,5.19929]
[1647020801985,0.02009923,2564.5,2564.3,4.22441]
[1647020802186,0.0171527,2564.5,2564.3,4.22441]
[1647020802586,0.02009923,2564.5,2564.3,5.19929]
[1647020803402,0.0171527,2564.5,2564.3,5.19929]
[1647020803603,0.02136449,2564.5,2564.3,5.19929]
[1647020804604,0.0171527,2564.5,2564.3,4.22441]
[1647020804804,0.0171527,2564.5,2564.3,5.19929]
[1647020805004,0.02136449,2564.5,2564.3,5.19929]
[1647020805807,0.0171527,2564.5,2564.3,5.19929]
[1647020806209,0.02136449,2564.5,2564.4,0.3]
[1647020807057,0.0171527,2564.5,2564.4,0.3]
[1647020808058,0.0171527,2564.5,2564.4,1.27479]
[1647020808261,0.0171527,2564.5,2564.4,0.3]
[1647020808463,0.0171527,2564.5,2564.3,3.92441]
[1647020809759,0.02108015,2564.5,2564.3,2.32441]
[1647020809958,0.02108015,2564.5,2564.3,1.32441]
[1647020810163,0.02108015,2564.5,2564.4,0.295724]
[1647020810559,0.0171527,2564.5,2564.4,0.295724]
[1647020811212,0.0171527,2564.5,2564.3,3.5993538]
[1647020811409,0.0171527,2564.5,2564.3,2.2993538]
[1647020811609,0.0171527,2564.5,2564.3,3.2993538]
[1647020811809,1.59711597,2564.4,2564.3,2.2993538]
[1647020812009,1.59711597,2564.4,2564.3,3.2993538]
[1647020814111,1.59711597,2564.4,2564.3,2.2993538]
[1647020814312,0.0171527,2564.5,2564.3,2.5993538]
[1647020814554,0.02112856,2564.5,2564.3,3.5742338]
[1647020814760,0.02112856,2564.5,2564.3,4.5742338]
[1647020815360,0.0171527,2564.5,2564.3,4.5742338]
[1647020815761,0.02112854,2564.5,2564.3,4.5742338]
[1647020816162,0.02112854,2564.5,2564.3,4.2742338]
[1647020816561,0.0171527,2564.5,2564.3,4.2742338]
[1647020816964,0.02112854,2564.5,2564.3,4.2742338]
[1647020817368,0.02112854,2564.5,2564.3,4.5742338]
[1647020817863,1.5970698,2564.4,2564.3,4.5742338]
[1647020818218,0.0211317,2564.5,2564.3,4.5742338]
[1647020818406,0.0211317,2564.5,2564.3,3.5993538]
[1647020818605,1.59708618,2564.4,2564.3,3.5993538]
[1647020819009,1.59708618,2564.4,2564.3,0.92082696]
[1647020819212,5.09708618,2564.4,2564.2,0.9748]
[1647020819414,0.0171527,2564.5,2564.0,0.00348213]
[1647020819415,1.59708618,2564.3,2564.0,0.00348213]
[1647020819611,1.59708618,2564.2,2564.0,0.00348213]
[1647020819809,1.07296083,2564.5,2564.0,0.00348213]
[1647020820015,1.59724714,2564.4,2564.0,0.00348213]
[1647020820216,5.09724714,2564.4,2563.9,0.97522]
[1647020820410,1.06898181,2564.5,2563.9,0.97522]
[1647020820411,1.59724714,2564.3,2563.9,0.97522]
[1647020820612,1.59724714,2564.2,2564.0,0.00348213]
[1647020820811,1.60122621,2564.4,2564.0,0.00348213]
[1647020821011,1.59724714,2564.3,2564.0,0.00348213]
[1647020821213,1.59724714,2564.2,2564.0,0.00348213]
[1647020821413,1.59724714,2564.1,2563.9,0.97522]
[1647020821612,0.06898181,2564.5,2563.9,0.97522]
[1647020821813,0.00397832,2564.3,2564.0,0.00347976]
[1647020822658,1.5972874,2564.4,2563.9,0.97522]
[1647020823054,0.00397832,2564.3,2564.0,0.00347976]
[1647020823857,3.55072349,2564.3,2563.9,0.97522]
[1647020824159,1.0278748,2564.1,2564.0,0.00347976]
[1647020824357,6.1251622,2564.1,2564.0,0.00347976]
[1647020824557,2.6251622,2564.1,2564.0,0.00347976]
[1647020824757,7.1251622,2564.1,2564.0,0.00347976]
[1647020825058,7.1251622,2564.1,2563.2,0.25]
[1647020825264,0.97548,2563.8,2563.1,2.4214]
[1647020825462,1.6512006,2563.7,2563.1,2.4214]
[1647020825718,1.64923778,2563.6,2563.1,0.3]
[1647020825912,0.05195038,2563.6,2563.0,3.80765]
[1647020826711,0.05195038,2563.6,2563.2,0.00348131]
[1647020827311,1.95338252,2564.0,2563.2,0.00348131]
[1647020827312,0.05425096,2563.9,2563.2,0.00348131]
[1647020827512,0.04576965,2563.7,2563.1,0.3]
[1647020827712,5.4754396,2564.1,2563.3,0.00348125]
[1647020827713,0.04911262,2564.1,2563.3,0.00348125]
[1647020827918,1.59745187,2564.0,2563.3,0.00348125]
[1647020828714,1.59745187,2564.0,2563.1,0.97533]
[1647020828715,3.54273357,2563.9,2563.1,0.97533]
[1647020828916,3.54273357,2563.9,2563.5,0.00348079]
[1647020828917,0.04238486,2563.7,2563.5,0.00348079]
[1647020829115,1.59745187,2563.6,2563.5,0.00348079]
[1647020829565,2.57303187,2563.6,2563.5,0.00348079]
[1647020829967,2.57303187,2563.6,2563.1,0.97559]
[1647020829968,0.04417416,2563.5,2563.1,0.97559]
[1647020830170,0.04417416,2563.5,2563.4,0.00348092]
[1647020830574,2.64197084,2563.5,2563.4,0.00348092]
[1647020831273,0.04890308,2563.4,2563.3,0.00348106]
[1647020831473,1.64669976,2563.4,2563.3,0.00348106]
[1647020832273,0.04890308,2563.4,2563.1,0.97559]
[1647020832474,1.64668617,2563.4,2563.2,0.00348992]
[1647020832674,1.59778309,2563.3,2563.2,0.00348992]
[1647020833506,1.59778309,2563.3,2563.1,0.97559]
[1647020833707,1.59778309,2563.3,2563.1,0.97908006]
[1647020834806,1.59778309,2563.3,2563.1,0.97559]
[1647020835006,1.59778309,2563.3,2563.1,0.97908013]
[1647020835411,0.04637259,2563.8,2563.1,0.97908013]
[1647020835610,0.00236026,2563.9,2563.1,0.97908013]
[1647020835611,1.59768049,2563.7,2563.1,0.97908013]
[1647020835809,1.59768049,2563.6,2563.1,0.97908013]
[1647020836015,1.59768049,2563.5,2563.1,0.97559]
[1647020836212,0.0467057,2563.8,2563.3,0.00347912]
[1647020836412,1.59762231,2563.7,2563.3,0.00347912]
[1647020836809,0.04893781,2564.1,2563.3,0.00347912]
[1647020836810,0.04888997,2564.1,2563.3,0.00347912]
[1647020837059,1.59755718,2564.0,2563.2,5.55333893]
[1647020837258,1.59755718,2564.0,2563.2,6.70883893]
[1647020837460,1.59755718,2564.0,2563.4,0.00347905]
[1647020838262,1.59755718,2564.0,2563.2,7.98412893]
[1647020838658,1.59755718,2564.0,2563.6,0.00347878]
[1647020839059,0.0043448,2563.5,2563.4,1.27533]
[1647020839259,0.0043448,2563.5,2563.2,6.43478893]
[1647020839659,0.0043448,2563.5,2563.2,9.93478893]
[1647020840062,0.0043448,2563.5,2563.2,6.43478893]
[1647020840911,0.0043448,2563.5,2563.2,4.18412893]
[1647020843313,0.0043448,2563.5,2563.2,4.18834316]
[1647020843713,0.0043448,2563.5,2563.2,4.18620937]
[1647020843913,0.0043448,2563.5,2563.2,3.13500423]
[1647020844113,0.0043448,2563.5,2563.2,2.13500423]
[1647020844315,0.0043448,2563.5,2563.2,3.13079]
[1647020844559,0.0043448,2563.5,2563.2,2.13079]
[1647020844758,0.0043448,2563.5,2563.2,2.13500423]
[1647020845157,0.0043448,2563.5,2563.2,0.00421423]
[1647020845557,0.0043448,2563.5,2563.1,4.17905]
[1647020845763,0.0043448,2563.5,2563.2,0.00421423]
[1647020846659,0.0043448,2563.5,2563.1,4.17905]
[1647020847062,0.0043448,2563.5,2563.2,0.00421423]
[1647020847961,0.0043448,2563.5,2563.1,5.15442]
[1647020848214,0.0043448,2563.5,2563.2,0.00383437]
[1647020849208,0.0043448,2563.5,2563.1,5.15442]
[1647020849412,0.0043448,2563.5,2563.2,0.00383437]
[1647020850213,0.0043448,2563.5,2563.1,5.15442]
[1647020850413,0.0043448,2563.5,2563.1,6.12974]
[1647020850615,0.0043448,2563.5,2563.2,0.00383437]
[1647020851618,0.0043448,2563.5,2563.1,6.12974]
[1647020851817,0.0043448,2563.5,2563.2,0.00340264]
[1647020852755,0.0043448,2563.5,2563.1,6.12974]
[1647020852957,0.0043448,2563.5,2563.2,0.00340264]
[1647020853962,0.0043448,2563.5,2563.1,6.12974]
[1647020854163,0.0043448,2563.5,2563.2,0.00340264]
[1647020855162,0.0043448,2563.5,2563.1,6.12974]
[1647020855364,0.0043448,2563.5,2563.2,0.0034902]
[1647020856417,0.0043448,2563.5,2563.1,5.15442]
[1647020856615,0.0043448,2563.5,2563.2,0.0034902]
[1647020857417,1.59760649,2563.4,2563.2,0.0034902]
[1647020857618,1.59760649,2563.4,2563.1,5.15442]
[1647020857816,0.0043448,2563.5,2563.2,0.0034902]
[1647020858418,1.59758793,2563.4,2563.2,0.0034902]
[1647020858819,1.59758793,2563.4,2563.1,3.92602]
[1647020859023,1.59758793,2563.4,2563.2,0.0034705]
[1647020859956,1.59758793,2563.4,2563.1,3.92602]
[1647020860154,1.59758793,2563.4,2563.2,0.00347057]
[1647020861158,1.59758793,2563.4,2563.1,3.92602]
[1647020861360,1.59758793,2563.4,2563.2,0.00347057]
[1647020862360,1.59758793,2563.4,2563.1,3.92602]
[1647020862561,1.59758793,2563.4,2563.2,0.003475]
[1647020863418,1.59104615,2563.4,2563.1,3.92602]
[1647020863618,0.0043448,2563.5,2563.1,3.92602]
[1647020863816,0.0043448,2563.5,2563.2,0.003475]
[1647020864620,0.0043448,2563.5,2563.1,3.92602]
[1647020864919,0.0043448,2563.5,2563.2,0.00347493]
[1647020866022,0.0043448,2563.5,2563.1,3.92602]
[1647020866220,0.0043448,2563.5,2563.2,0.00347393]
[1647020867061,0.0043448,2563.5,2562.9,3.90137]
[1647020867062,4.5,2563.4,2562.9,2.92598]
[1647020867266,4.5,2563.4,2562.4,0.44760144]
[1647020867267,1.7042539,2563.0,2562.4,0.44760144]
[1647020867467,4.5,2562.9,2562.2,1.1373]
[1647020867666,0.04961826,2562.7,2562.2,1.1373]
[1647020867866,0.04961826,2562.7,2562.2,3.08905]
[1647020868564,1.02329561,2562.6,2562.0,2.3318]
[1647020868763,1.02329561,2562.6,2561.9,0.06891244]
[1647020869370,0.04731551,2562.6,2562.0,0.8144283]
[1647020869567,0.0443266,2562.9,2562.0,0.8144283]
[1647020869767,0.0443266,2562.9,2562.1,0.07362199]
[1647020869968,0.04196643,2562.9,2562.1,0.07362199]
[1647020870810,0.04196643,2562.9,2562.1,0.07014634]
[1647020871011,0.04196643,2562.9,2562.4,0.00347531]
[1647020871914,0.04196643,2562.9,2562.1,0.07014634]
[1647020872110,0.04196643,2562.9,2562.5,0.00347511]
[1647020872311,1.01773643,2562.9,2562.5,0.00347511]
[1647020872511,1.0,2562.7,2562.5,0.00347511]
[1647020873210,1.0,2562.7,2562.1,0.07014634]
[1647020873412,0.97582,2562.8,2562.5,0.00345775]
[1647020874464,5.2042539,2563.0,2562.0,2.25163]
[1647020874465,0.9759,2562.6,2562.0,2.25163]
[1647020874658,0.9759,2562.6,2562.5,0.00345768]
[1647020874859,1.04201928,2562.7,2562.5,0.00345768]
[1647020875361,0.04201928,2562.7,2562.5,0.00345768]
[1647020875565,1.7042539,2563.0,2562.4,0.97578]
[1647020876263,1.7042539,2563.0,2562.4,1.27578]
[1647020877171,1.7042539,2563.0,2562.6,0.00346153]
[1647020877966,1.7042539,2563.0,2562.4,1.27578]
[1647020878210,1.7042539,2563.0,2562.7,0.0034614]
[1647020879211,1.7042539,2563.0,2562.6,0.97562]
[1647020879415,1.7042539,2563.0,2562.7,0.00346133]
[1647020880419,1.7042539,2563.0,2562.6,0.97562]
[1647020880616,1.7042539,2563.0,2562.7,0.00345181]
[1647020881619,1.7042539,2563.0,2562.6,0.97562]
[1647020881816,1.7042539,2563.0,2562.7,0.00345181]
[1647020882653,1.7042539,2563.0,2562.6,0.97562]
[1647020883055,1.7042539,2563.0,2562.7,0.00345181]
[1647020883462,1.59794516,2562.9,2562.7,0.00345181]
[1647020883862,1.59794516,2562.9,2562.6,0.97562]
[1647020884260,1.59794516,2562.9,2562.7,0.00345402]
[1647020885064,1.59794516,2562.9,2562.6,0.97562]
[1647020885363,1.59794516,2562.9,2562.7,1.04239833]
[1647020885564,1.7042539,2563.0,2562.8,0.08957742]
[1647020886616,1.7042539,2563.0,2562.8,0.0930313]
[1647020887015,1.6542539,2563.0,2562.8,0.0930313]
[1647020887316,0.0043448,2563.5,2562.9,6.5]
[1647020887519,0.0043448,2563.5,2562.9,7.5]
[1647020887722,0.0043448,2563.5,2563.0,0.08449032]
[1647020887917,0.0043448,2563.5,2563.0,1.22869032]
[1647020888118,0.0043448,2563.5,2563.1,0.08986075]
[1647020888319,0.0043448,2563.5,2563.1,1.36500075]
[1647020888519,0.0043448,2563.5,2563.4,1.09689577]
[1647020889861,0.0043448,2563.5,2563.4,2.07198577]
[1647020891262,0.0043448,2563.5,2563.4,2.65731023]
[1647020891464,0.0043448,2563.5,2563.4,1.56041446]
[1647020891661,0.0043448,2563.5,2563.4,2.56041446]
[1647020891863,0.0043448,2563.5,2563.4,1.56041446]
[1647020894510,0.0043448,2563.5,2563.4,1.86041446]
[1647020895517,0.0043448,2563.5,2563.4,2.05434483]
[1647020896116,0.0043448,2563.5,2563.4,1.75434483]
[1647020896969,0.0043448,2563.5,2563.3,12.31083406]
[1647020897158,0.0043448,2563.5,2563.4,1.1827]
[1647020897764,0.0043448,2563.5,2563.3,9.5809]
[1647020898169,0.0043448,2563.5,2563.1,5.45611308]
[1647020898369,0.0043448,2563.5,2563.1,5.45266]
[1647020898865,0.0043448,2563.5,2563.1,5.45611309]
[1647020899666,0.0043448,2563.5,2563.1,5.45266]
[1647020899865,0.0043448,2563.5,2563.1,5.45611309]
[1647020900267,0.0043448,2563.5,2563.1,6.45611309]